bitfinex-derivatives/quotes_ETHF0:USTF0_20240910
["timestamp","ask_amount","ask_price","bid_price","bid_amount"]
[1725945643336,2.9820248,2344.4,2344.3,0.42654]
[1725945648531,0.7464,2344.4,2344.3,0.42654]
[1725945648734,3.54134169,2344.4,2344.3,0.42654]
[1725945649330,0.7464,2344.4,2344.3,0.42654]
[1725945651334,3.54398534,2344.4,2344.3,0.42654]
[1725945651535,2.79758534,2344.4,2344.3,0.42654]
[1725945656947,3.18678534,2344.5,2344.3,0.42654]
[1725945657642,2.23822312,2344.4,2344.3,0.42654]
[1725945660339,2.23822312,2344.4,2344.3,4.69214]
[1725945661744,2.23822312,2344.4,2344.3,0.42654]
[1725945662049,3.03192312,2344.4,2344.3,0.42654]
[1725945662435,0.7937,2344.4,2344.3,0.42654]
[1725945662638,3.03233939,2344.4,2344.3,0.42654]
[1725945663946,3.59128534,2344.4,2344.3,0.42654]
[1725945669649,0.7937,2344.4,2344.3,0.42654]
[1725945671152,3.59128534,2344.4,2344.3,0.42654]
[1725945671446,0.7937,2344.4,2344.3,0.42654]
[1725945671855,0.7937,2344.4,2344.3,1.53986132]
[1725945672351,3.03217801,2344.4,2344.3,1.53986132]
[1725945672939,3.03217801,2344.4,2344.3,2.11529132]
[1725945673145,0.7937,2344.4,2344.3,2.11529132]
[1725945673443,3.03217801,2344.4,2344.3,2.11529132]
[1725945673643,2.62767801,2344.5,2344.4,0.42652]
[1725945673851,2.62802348,2344.5,2344.4,0.42652]
[1725945674642,0.3892,2344.5,2344.4,0.42652]
[1725945675251,0.3892,2344.5,2344.3,1.53985132]
[1725945675456,2.23908153,2344.4,2344.3,1.53985132]
[1725945675852,2.23908153,2344.4,2344.3,2.10996969]
[1725945676650,2.23908153,2344.4,2344.3,1.53985132]
[1725945677049,2.62828153,2344.5,2344.4,0.42652]
[1725945677255,0.3892,2344.5,2344.4,0.42652]
[1725945677458,0.3892,2344.5,2344.3,1.53985132]
[1725945677657,2.23905585,2344.4,2344.3,1.53985132]
[1725945678353,2.62815531,2344.5,2344.4,0.42652]
[1725945678757,2.62815531,2344.5,2344.4,0.82482]
[1725945679157,2.62815531,2344.5,2344.4,1.56782]
[1725945679857,2.62815531,2344.5,2344.4,2.79782]
[1725945680460,2.33895531,2344.6,2344.5,0.4265]
[1725945680670,0.08801289,2344.6,2344.5,13.79078295]
[1725945680954,0.3892,2344.9,2344.8,0.42645]
[1725945681163,0.3892,2344.9,2344.8,7.03212272]
[1725945681662,0.3892,2344.9,2344.8,7.1573762]
[1725945681857,0.3892,2344.9,2344.8,8.3873762]
[1725945682360,0.3892,2344.9,2344.8,7.27650348]
[1725945683555,0.3892,2344.9,2344.8,3.01170348]
[1725945683867,0.3892,2344.9,2344.8,7.27650348]
[1725945687470,0.3892,2344.9,2344.8,3.01170348]
[1725945687669,0.3892,2344.9,2344.8,7.27650348]
[1725945687872,0.3892,2344.9,2344.8,3.01170348]
[1725945688167,0.3892,2344.9,2344.8,7.27650348]
[1725945688959,0.3892,2344.9,2344.8,3.01170348]
[1725945689571,0.3892,2344.9,2344.8,7.27650348]
[1725945689761,0.3892,2344.9,2344.8,3.01170348]
[1725945690366,1.1819,2345.1,2345.0,0.42641]
[1725945691767,0.3991,2345.1,2345.0,1.65641]
[1725945692077,2.23895531,2345.3,2345.1,0.42639]
[1725945692276,2.23895531,2345.3,2345.2,1.65638]
[1725945692472,2.63805531,2345.4,2345.3,0.42636]
[1725945692774,2.63805531,2345.4,2345.2,2.42856]
[1725945692980,2.63805531,2345.4,2345.2,1.23]
[1725945693277,2.63805531,2345.4,2345.1,0.42638]
[1725945693490,1.23,2345.2,2344.9,0.373]
[1725945693782,1.1507,2345.1,2344.9,0.42642]
[1725945693980,1.1507,2345.1,2345.0,0.42641]
[1725945696678,5.4147,2345.1,2345.0,0.42641]
[1725945697172,1.1507,2345.1,2345.0,0.42641]
[1725945699575,1.1507,2345.1,2345.0,0.81761]
[1725945699781,0.3902,2345.1,2345.0,0.81761]
[1725945699979,0.3902,2345.1,2345.0,1.60081]
[1725945700382,0.3655,2345.4,2345.0,5.4384]
[1725945700586,0.7368,2345.4,2345.3,0.42636]
[1725945700988,0.7368,2345.4,2345.3,0.81756]
[1725945701389,0.3713,2345.4,2345.3,1.21666]
[1725945703090,2.63465531,2345.6,2345.3,2.0203]
[1725945703091,2.23895531,2345.6,2345.3,2.0203]
[1725945703287,2.79758534,2345.8,2345.5,0.42631]
[1725945703288,2.23895531,2345.7,2345.5,0.42631]
[1725945703482,3.38815531,2345.8,2345.6,0.4263]
[1725945703992,3.38815531,2345.8,2345.5,0.42631]
[1725945704185,2.23895531,2345.7,2345.5,0.42631]
[1725945704989,2.23895531,2345.7,2345.4,0.3773]
[1725945705191,2.23895531,2345.7,2345.6,0.4263]
[1725945705590,2.23895531,2345.7,2345.6,1.6563]
[1725945705793,3.38815531,2345.8,2345.7,0.42629]
[1725945706193,3.38815531,2345.8,2345.6,0.42629]
[1725945706793,1.65629,2345.7,2345.4,0.42634]
[1725945706987,3.89524531,2345.7,2345.4,0.42634]
[1725945707196,3.89524531,2345.7,2345.5,0.42632]
[1725945707387,3.89524531,2345.7,2345.0,0.3647]
[1725945707388,1.23,2345.6,2345.0,0.3647]
[1725945707583,0.3766,2345.5,2345.0,1.979]
[1725945707785,0.7377,2345.4,2345.3,0.42636]
[1725945709596,0.3644,2345.4,2345.3,0.42636]
[1725945709788,0.7312,2345.4,2345.3,0.42636]
[1725945710397,0.7312,2345.4,2345.3,2.03906]
[1725945710990,0.3766,2345.5,2345.4,0.42634]
[1725945711192,0.3766,2345.5,2345.4,2.02194]
[1725945716997,3.02305531,2345.7,2345.4,2.02194]
[1725945716998,3.02305531,2345.7,2345.6,0.4263]
[1725945717703,3.02305531,2345.7,2345.6,0.8]
[1725945718003,0.7841,2345.7,2345.6,0.8]
[1725945718195,2.63615531,2345.8,2345.6,2.03]
[1725945718596,2.63615531,2345.8,2345.7,0.42629]
[1725945718893,2.63615531,2345.8,2345.6,1.6037]
[1725945718894,2.63615531,2345.8,2345.6,2.02999]
[1725945719498,2.63615531,2345.8,2345.4,0.3656]
[1725945719499,3.06242531,2345.8,2345.4,2.02193]
[1725945719805,0.3945,2345.7,2345.4,2.39562]
[1725945719994,0.3807,2345.6,2345.5,0.42632]
[1725945720205,0.3807,2345.6,2345.4,0.42633]
[1725945720503,0.4032,2345.5,2345.4,0.42634]
[1725945720805,1.6332,2345.5,2345.3,0.42635]
[1725945720994,0.4032,2345.5,2345.4,0.42634]
[1725945723401,0.4032,2345.5,2345.4,1.18584]
[1725945725899,0.4032,2345.5,2345.4,0.7595]
[1725945726094,0.4032,2345.5,2345.3,1.23]
[1725945726300,0.3745,2345.4,2345.3,1.65636]
[1725945732913,0.3745,2345.4,2345.2,0.80806]
[1725945733209,0.3883,2345.3,2345.2,0.80806]
[1725945733410,0.3883,2345.3,2345.0,1.11087272]
[1725945733612,0.4014,2345.2,2345.1,0.42639]
[1725945734315,0.4014,2345.2,2345.0,1.23]
[1725945734316,0.4014,2345.2,2345.0,1.65641]
[1725945734504,0.4014,2345.2,2345.1,0.42639]
[1725945735308,0.4014,2345.2,2345.0,1.6564]
[1725945735616,0.4014,2345.2,2344.9,1.23]
[1725945735810,0.4017,2345.1,2345.0,0.42641]
[1725945736400,0.4017,2345.1,2344.7,0.3779]
[1725945736611,3.06705531,2345.1,2344.8,0.42644]
[1725945736813,3.06705531,2345.1,2344.9,0.42643]
[1725945737212,3.06705531,2345.1,2345.0,1.65641]
[1725945737213,2.64065531,2345.1,2345.0,1.65641]
[1725945737517,0.4017,2345.1,2345.0,1.65641]
[1725945738619,0.4014,2345.2,2345.1,0.42639]
[1725945739117,0.4014,2345.2,2345.0,2.4096]
[1725945739317,2.23435465,2345.1,2345.0,2.4096]
[1725945740809,2.23435465,2345.1,2344.9,0.42643]
[1725945741015,2.23435465,2345.1,2344.8,1.23]
[1725945741016,3.42117465,2345.0,2344.7,0.80256]
[1725945741217,2.23467735,2344.9,2344.7,0.80256]
[1725945741514,2.23467735,2344.8,2344.7,0.80256]
[1725945741910,2.23467735,2344.8,2344.7,0.42647]
[1725945742321,2.23467735,2344.8,2344.6,1.65647]
[1725945742515,2.23467735,2344.8,2344.5,1.6071]
[1725945742717,2.23467735,2344.8,2344.7,0.42647]
[1725945743221,2.23437805,2344.8,2344.7,0.42647]
[1725945743412,2.23437805,2344.8,2344.6,0.42648]
[1725945743719,2.23437805,2344.8,2344.7,0.42647]
[1725945743915,0.42646,2344.8,2344.6,0.42648]
[1725945744214,2.23384891,2344.7,2344.6,0.42648]
[1725945744413,2.23384891,2344.8,2344.7,0.42647]
[1725945744717,2.61914891,2344.9,2344.8,0.42645]
[1725945745015,2.61914891,2344.9,2344.8,1.65645]
[1725945745016,2.61901436,2344.9,2344.8,1.65645]
[1725945746011,2.23371436,2345.0,2344.9,0.42643]
[1725945746213,3.03599436,2345.2,2345.0,0.42641]
[1725945746510,3.03599436,2345.2,2345.0,1.65641]
[1725945746916,3.03599436,2345.2,2345.0,1.23]
[1725945747119,3.03599436,2345.2,2345.0,1.65641]
[1725945747512,2.60961436,2345.2,2345.0,1.65641]
[1725945747721,3.03599436,2345.2,2345.0,1.65641]
[1725945747915,2.60961436,2345.2,2345.0,1.65641]
[1725945748428,3.03599436,2345.2,2345.0,1.23]
[1725945748922,3.03599436,2345.2,2345.0,1.6265]
[1725945749118,0.80228,2345.2,2345.0,1.6265]
[1725945749324,3.03599436,2345.2,2345.0,1.6265]
[1725945750328,3.03599436,2345.2,2345.1,0.42639]
[1725945750329,0.3759,2345.2,2345.1,0.42639]
[1725945751327,0.3759,2345.2,2345.0,2.0529]
[1725945751625,2.60961436,2345.2,2345.0,1.6564]
[1725945751812,2.60961436,2345.2,2345.1,0.42639]
[1725945752224,0.3759,2345.2,2345.1,0.42639]
[1725945752421,5.06628,2345.2,2345.0,0.4264]
[1725945752630,2.60961436,2345.2,2345.1,0.42639]
[1725945752827,6.87361436,2345.2,2345.1,0.42639]
[1725945753125,4.6399,2345.2,2345.1,0.42639]
[1725945753720,7.29999436,2345.2,2345.0,0.4264]
[1725945753921,3.03599436,2345.2,2345.1,0.42639]
[1725945754119,0.3759,2345.2,2345.1,0.42639]
[1725945754324,6.87223132,2345.2,2345.1,0.42639]
[1725945754936,4.6399,2345.2,2345.1,0.42639]
[1725945755122,4.6399,2345.2,2345.1,1.20859]
[1725945755633,0.3759,2345.2,2345.1,1.20859]
[1725945755842,2.79758534,2345.4,2345.3,0.42636]
[1725945756024,2.62943132,2345.5,2345.3,1.65636]
[1725945757728,2.62943132,2345.5,2345.3,1.23]
[1725945758221,3.05575132,2345.5,2345.2,2.03376]
[1725945758730,2.62943132,2345.5,2345.3,0.42636]
[1725945759323,2.62943132,2345.5,2345.2,1.6074]
[1725945759626,0.3971,2345.5,2345.4,0.42634]
[1725945759826,2.23233132,2345.6,2345.4,0.42634]
[1725945760022,2.23233132,2345.6,2345.5,0.42632]
[1725945760236,2.23233132,2345.6,2345.5,0.82672]
[1725945760435,2.63123132,2345.7,2345.6,0.4263]
[1725945760734,2.63123132,2345.7,2345.6,1.6259]
[1725945761119,2.63123132,2345.7,2345.5,0.4004]
[1725945761435,0.82519,2345.7,2345.4,2.04204]
[1725945761627,0.3989,2345.7,2345.4,2.04204]
[1725945761833,0.3989,2345.7,2345.4,0.81204]
[1725945762225,0.3989,2345.7,2345.2,0.42637]
[1725945762226,1.65633,2345.5,2345.2,0.42637]
[1725945762431,1.65633,2345.5,2344.9,1.11087272]
[1725945762432,0.7642,2345.4,2345.3,0.42636]
[1725945762733,1.1648,2345.4,2345.2,0.42637]
[1725945763820,1.1648,2345.4,2345.1,1.23]
[1725945764031,1.1648,2345.4,2345.2,0.42638]
[1725945764233,1.1648,2345.4,2345.3,0.42636]
[1725945764434,0.4006,2345.4,2345.3,0.42636]
[1725945764634,0.4006,2345.4,2345.3,1.65636]
[1725945765038,2.23233132,2345.6,2345.4,0.42633]
[1725945765336,2.60123132,2345.6,2345.5,0.365]
[1725945766535,2.60123132,2345.6,2345.4,1.20343]
[1725945768725,3.02754132,2345.6,2345.4,1.20343]
[1725945768932,3.02754132,2345.6,2345.4,0.42633]
[1725945769143,4.2632,2345.5,2345.1,1.1746]
[1725945769439,2.23233132,2345.5,2345.3,0.42636]
[1725945769735,2.65867132,2345.5,2345.3,0.42636]
[1725945770327,2.23233132,2345.5,2345.2,0.42637]
[1725945770533,0.42637,2345.3,2344.9,2.66]
[1725945770838,1.1483,2345.2,2345.1,0.42639]
[1725945771744,1.57468,2345.2,2345.1,0.42639]
[1725945771946,1.1483,2345.2,2345.1,0.42639]
[1725945772237,1.57468,2345.2,2345.1,0.42639]
[1725945772638,5.83868,2345.2,2344.9,0.3672]
[1725945772839,1.1483,2345.2,2345.1,0.42639]
[1725945773341,5.4123,2345.2,2345.1,0.42639]
[1725945773944,0.4264,2345.1,2345.0,0.42641]
[1725945778147,3.38063132,2345.2,2345.0,0.42641]
[1725945778341,0.42639,2345.1,2345.0,0.42641]
[1725945778641,3.80702132,2345.2,2345.0,0.42641]
[1725945779046,0.42639,2345.1,2345.0,0.42641]
[1725945780653,3.38063132,2345.2,2344.9,0.79362]
[1725945780855,0.4264,2345.1,2345.0,0.42641]
[1725945781343,0.4264,2345.1,2344.9,0.79362]
[1725945781546,3.38063132,2345.2,2345.1,0.42639]
[1725945781744,3.80701132,2345.2,2345.1,0.42639]
[1725945781946,8.07101132,2345.2,2345.1,0.42639]
[1725945782149,3.86346534,2345.4,2344.9,3.0272]
[1725945782150,2.23233132,2345.3,2344.9,3.0272]
[1725945782342,2.23233132,2345.4,2345.3,0.42636]
[1725945783759,2.23233132,2345.4,2344.9,4.40405907]
[1725945784351,3.43595132,2345.5,2345.2,0.42638]
[1725945784552,3.43595132,2345.5,2345.3,1.1322]
[1725945785261,1.20362,2345.5,2345.3,1.1322]
[1725945785559,3.43595132,2345.5,2345.3,1.1322]
[1725945786564,2.23233132,2345.5,2345.3,1.1322]
[1725945786860,0.42633,2345.5,2345.3,1.1322]
[1725945787153,2.23233132,2345.6,2345.4,0.42634]
[1725945787561,3.04972132,2345.7,2345.4,0.42634]
[1725945788657,4.2632,2345.6,2345.1,2.66]
[1725945788857,2.65866132,2345.5,2345.2,0.3652]
[1725945789057,0.7427,2345.4,2345.3,0.42636]
[1725945789262,1.1249,2345.4,2345.3,0.42636]
[1725945792158,1.1249,2345.4,2345.3,1.65636]
[1725945792865,2.23233132,2345.6,2345.4,0.42633]
[1725945793059,3.03442132,2345.7,2345.5,1.1485]
[1725945794071,3.03442132,2345.7,2345.5,1.57482]
[1725945796369,2.65862132,2345.7,2345.5,1.57482]
[1725945799175,2.65862132,2345.7,2345.5,1.1485]
[1725945799373,2.23233132,2345.6,2345.5,1.1485]
[1725945800073,2.33233132,2345.9,2345.5,13.70751]
[1725945800276,2.23233132,2346.0,2345.9,0.42625]
[1725945800778,2.63483132,2346.1,2345.9,1.58975]
[1725945800977,2.63483132,2346.1,2346.0,0.42623]
[1725945801579,0.4025,2346.1,2346.0,0.42623]
[1725945801879,2.63483132,2346.1,2346.0,0.42623]
[1725945802384,0.4025,2346.1,2346.0,0.42623]
[1725945802972,2.63483132,2346.1,2346.0,0.42623]
[1725945803374,0.4025,2346.1,2346.0,0.42623]
[1725945805382,0.4025,2346.1,2346.0,1.65623]
[1725945806384,0.3684,2346.2,2346.1,0.42621]
[1725945807285,2.599465,2346.2,2346.1,0.42621]
[1725945807790,2.231065,2346.2,2346.1,0.42621]
[1725945808686,2.231065,2346.2,2346.1,1.65621]
[1725945808886,2.231065,2346.3,2346.2,0.42619]
[1725945809280,2.231065,2346.3,2346.2,0.81279]
[1725945809478,2.231065,2346.3,2346.2,2.04279]
[1725945809683,2.79758534,2346.4,2346.2,1.6166]
[1725945809684,2.231065,2346.4,2346.2,1.6166]
[1725945809884,2.231065,2346.4,2346.3,0.7686]
[1725945810085,2.231065,2346.4,2346.3,1.19478]
[1725945810585,2.231065,2346.4,2346.3,0.7686]
[1725945810787,2.231065,2346.4,2346.2,0.81279]
[1725945812784,2.231065,2346.4,2346.3,0.42618]
[1725945813387,0.3679,2346.5,2346.3,0.42618]
[1725945813388,2.598965,2346.5,2346.3,0.42618]
[1725945813582,2.598965,2346.5,2346.2,0.3866]
[1725945813793,2.598965,2346.5,2346.3,0.81116]
[1725945814381,0.3679,2346.5,2346.3,0.81116]
[1725945814586,0.3679,2346.5,2346.3,0.42616]
[1725945815494,0.3679,2346.5,2346.4,0.42616]
[1725945819185,2.231065,2346.7,2346.4,1.23]
[1725945819498,0.3971,2346.6,2346.5,0.42613]
[1725945819681,0.3971,2346.6,2346.5,0.81053]
[1725945819991,0.3723,2346.7,2346.6,0.42612]
[1725945820190,0.3723,2346.7,2346.5,1.59172]
[1725945820191,0.7694,2346.7,2346.5,1.59172]
[1725945820597,0.7694,2346.7,2346.6,0.42612]
[1725945821397,0.7694,2346.7,2346.5,1.1656]
[1725945821694,0.7694,2346.7,2346.6,0.42612]
[1725945821889,0.3971,2346.7,2346.6,0.42612]
[1725945822389,4.5712,2346.9,2346.7,0.42609]
[1725945822390,4.9553,2346.9,2346.7,0.42609]
[1725945822590,4.9553,2346.9,2346.5,2.3956]
[1725945822591,4.9553,2346.9,2346.8,0.42609]
[1725945822792,0.7823,2346.9,2346.7,0.42609]
[1725945823391,0.7823,2346.9,2346.8,0.79139]
[1725945823583,2.331065,2347.4,2346.8,1.5953]
[1725945823788,1.6141,2347.1,2346.8,0.42608]
[1725945823985,2.04014,2347.1,2346.9,0.42607]
[1725945824185,2.04014,2347.1,2346.8,0.42608]
[1725945824186,1.6141,2347.1,2346.8,0.42608]
[1725945824388,1.6141,2347.1,2346.6,0.3653]
[1725945824389,2.04014,2347.1,2346.6,0.3653]
[1725945824590,1.6141,2347.1,2346.6,0.3653]
[1725945824795,1.6141,2347.1,2347.0,0.42605]
[1725945825198,5.8749,2347.1,2347.0,0.42605]
[1725945825797,6.30093,2347.1,2346.9,0.42605]
[1725945825994,2.04013,2347.1,2347.0,0.42605]
[1725945826390,5.8749,2347.1,2347.0,0.42605]
[1725945827609,0.42606,2347.0,2346.8,0.42608]
[1725945827799,0.7816,2346.9,2346.8,0.42608]
[1725945828896,0.7816,2346.9,2346.1,1.06553]
[1725945828897,5.0424,2346.9,2346.1,1.06553]
[1725945829097,0.42612,2346.7,2346.4,0.42615]
[1725945829505,0.4026,2346.8,2346.7,0.4261]
[1725945830505,0.4026,2346.8,2346.6,1.55581]
[1725945830907,0.82869,2346.8,2346.6,0.42611]
[1725945831404,0.82869,2346.8,2346.5,0.42612]
[1725945831608,0.4026,2346.8,2346.5,0.42612]
[1725945831904,0.4026,2346.8,2346.5,0.42613]
[1725945832091,0.82869,2346.8,2346.4,1.65615]
[1725945832696,0.82869,2346.8,2346.5,0.42614]
[1725945832900,0.4026,2346.8,2346.6,0.42612]
[1725945833304,4.6642,2346.8,2346.4,1.23]
[1725945833502,0.4026,2346.8,2346.6,0.42611]
[1725945833706,4.6642,2346.8,2346.6,0.42611]
[1725945834303,0.4026,2346.8,2346.6,0.42611]
[1725945834505,4.6642,2346.8,2346.6,0.42611]
[1725945836508,0.4026,2346.8,2346.6,0.81141]
[1725945836705,4.6642,2346.8,2346.6,0.81141]
[1725945837106,3.86265534,2347.2,2346.8,0.42608]
[1725945837107,0.42603,2347.2,2346.8,0.42608]
[1725945837302,0.378,2347.1,2346.9,0.3853]
[1725945837506,0.378,2347.1,2346.9,0.81136]
[1725945837711,0.378,2347.1,2346.9,1.6153]
[1725945837908,0.378,2347.1,2347.0,1.65605]
[1725945838106,0.52597,2347.5,2347.1,0.42602]
[1725945838107,0.1,2347.5,2347.1,0.42602]
[1725945838308,0.7879,2347.4,2347.2,0.42601]
[1725945838507,1.1659,2347.4,2347.2,0.42601]
[1725945839218,1.1659,2347.4,2347.0,1.23]
[1725945839515,1.1659,2347.4,2347.2,0.426]
[1725945839709,0.378,2347.4,2347.3,0.426]
[1725945839904,0.378,2347.4,2347.3,0.3899]
[1725945841412,0.52591,2347.8,2347.4,0.42597]
[1725945841614,0.42593,2347.7,2347.5,0.3832]
[1725945842414,1.23,2347.7,2347.1,0.3916]
[1725945842617,0.42599,2347.4,2347.0,2.43004]
[1725945842911,1.1343,2347.3,2347.0,2.004]
[1725945843112,1.1343,2347.3,2347.1,0.42603]
[1725945843331,1.1343,2347.3,2347.1,1.23]
[1725945843518,1.1343,2347.3,2347.2,0.42601]
[1725945843718,1.1343,2347.3,2347.1,1.65602]
[1725945843911,1.1343,2347.3,2347.1,0.42602]
[1725945844505,1.5603,2347.3,2347.0,2.004]
[1725945844912,0.42602,2347.2,2347.0,0.42604]
[1725945845220,1.56031,2347.3,2347.0,0.42604]
[1725945845822,0.42601,2347.2,2346.8,1.6198]
[1725945846024,0.42604,2347.1,2346.9,0.42605]
[1725945846623,0.42603,2347.1,2347.0,0.42605]
[1725945846821,0.42603,2347.1,2346.9,0.42606]
[1725945847022,0.42603,2347.1,2346.8,1.23]
[1725945847324,0.42603,2347.1,2346.9,0.42606]
[1725945848524,0.42602,2347.2,2346.7,2.0006]
[1725945849113,0.42602,2347.2,2347.0,0.42604]
[1725945849519,1.1343,2347.3,2347.0,1.23]
[1725945849729,1.1343,2347.3,2347.2,0.42601]
[1725945850225,5.3943,2347.3,2347.2,0.42601]
[1725945850625,0.42602,2347.2,2347.1,0.42603]
[1725945851120,4.68682,2347.2,2347.1,0.42603]
[1725945851516,0.42603,2347.1,2347.0,0.42604]
[1725945851725,0.42603,2347.2,2347.0,0.42604]
[1725945851921,0.42603,2347.2,2347.1,0.42603]
[1725945852322,4.68683,2347.2,2347.1,0.42603]
[1725945854327,0.42598,2347.4,2347.1,1.23]
[1725945854623,0.42598,2347.4,2347.3,0.426]
[1725945854827,4.26,2347.4,2347.3,0.426]
[1725945855220,4.68598,2347.4,2347.3,0.426]
[1725945855829,4.26,2347.4,2347.3,0.426]
[1725945856134,0.42597,2347.5,2347.3,0.426]
[1725945856927,4.68597,2347.5,2347.3,0.426]
[1725945857319,4.68597,2347.5,2347.1,1.23]
[1725945857320,0.426,2347.3,2347.1,0.42603]
[1725945857527,0.3899,2347.2,2347.1,0.42603]
[1725945858632,0.7824,2347.2,2347.1,0.42603]
[1725945858826,1.1655,2347.2,2347.1,0.42603]
[1725945860621,0.7824,2347.2,2347.1,0.42603]
[1725945863730,0.7824,2347.2,2347.0,1.65604]
[1725945863933,2.0124,2347.2,2346.8,1.20648]
[1725945864132,0.42604,2347.1,2346.8,1.20648]
[1725945864337,0.3788,2347.0,2346.8,1.20648]
[1725945864542,0.3788,2347.0,2346.8,2.43648]
[1725945865030,0.3788,2347.0,2346.9,0.42607]
[1725945867132,0.3788,2347.0,2346.8,0.7804]
[1725945867328,0.3788,2347.0,2346.8,1.20648]
[1725945867935,0.3788,2347.0,2346.7,0.79269]
[1725945868132,0.3788,2347.0,2346.8,0.42608]
[1725945873344,0.3788,2347.0,2346.9,0.42607]
[1725945877037,4.6396,2347.0,2346.9,0.42607]
[1725945880145,4.6396,2347.0,2346.9,1.65607]
[1725945880345,0.42604,2347.1,2346.9,1.65606]
[1725945884348,2.79444004,2347.0,2346.9,1.65606]
[1725945887744,2.79444004,2347.0,2346.9,0.42606]
[1725945889165,0.42604,2347.1,2346.9,0.42606]
[1725945889166,3.22048004,2347.1,2346.9,0.42606]
[1725945890165,3.22048004,2347.1,2347.0,0.42605]
[1725945890365,7.48128004,2347.1,2347.0,0.42605]
[1725945890665,7.05524004,2347.1,2347.0,0.42605]
[1725945890962,2.79444004,2347.1,2347.0,0.42605]
[1725945891560,7.05524004,2347.1,2347.0,0.42605]
[1725945891965,7.48127004,2347.1,2347.0,0.42605]
[1725945896273,0.42605,2347.0,2346.9,0.42605]
[1725945896579,3.22062698,2347.1,2347.0,0.42605]
[1725945896981,7.48142698,2347.1,2347.0,0.42605]
[1725945897185,4.68684,2347.1,2347.0,0.42605]
[1725945900679,0.42604,2347.1,2346.8,0.4021]
[1725945900975,0.42604,2347.1,2347.0,0.42604]
[1725945902582,4.68684,2347.1,2347.0,0.42604]
[1725945906083,4.68684,2347.1,2346.9,0.42605]
[1725945906084,0.42605,2347.0,2346.9,0.42605]
[1725945906378,0.42605,2347.0,2346.8,0.4021]
[1725945906379,2.79549519,2347.0,2346.8,0.4021]
[1725945906678,1.06509,2347.1,2346.8,0.4021]
[1725945906679,3.16349519,2346.9,2346.8,0.4021]
[1725945907470,3.16349519,2346.9,2346.8,0.82817]
[1725945910277,4.35526519,2346.9,2346.8,0.4021]
[1725945911278,3.92919519,2346.9,2346.8,0.82819]
[1725945911877,4.35526519,2346.9,2346.8,0.82819]
[1725945912478,1.55977,2346.9,2346.8,0.82819]
[1725945914475,1.55977,2346.9,2346.4,1.11087272]
[1725945914476,6.6245,2346.9,2346.4,1.11087272]
[1725945914687,2.79628823,2346.6,2346.5,0.42614]
[1725945914984,2.79628823,2346.7,2346.6,0.42612]
[1725945915389,2.79628823,2346.8,2346.7,0.4261]
[1725945916178,3.22237823,2346.8,2346.7,0.4261]
[1725945917281,2.79628823,2346.9,2346.8,0.42609]
[1725945917497,3.82583003,2347.2,2346.8,0.3969]
[1725945917685,2.79461145,2347.1,2347.0,0.42605]
[1725945918084,2.79461145,2347.2,2347.1,0.42603]
[1725945918276,2.79461145,2347.3,2347.2,0.42601]
[1725945918678,2.79461145,2347.4,2347.1,0.42602]
[1725945918878,2.79461145,2347.3,2347.2,0.8268]
[1725945919082,2.79461145,2347.4,2347.2,0.8268]
[1725945919288,2.79461145,2347.3,2347.2,0.8268]
[1725945919487,2.79461145,2347.3,2347.2,0.4008]
[1725945921087,2.79461145,2347.3,2347.2,0.82681]
[1725945921489,2.79461145,2347.4,2347.2,0.82681]
[1725945922102,2.79461145,2347.3,2347.2,0.82681]
[1725945922287,2.79461145,2347.4,2347.2,0.82681]
[1725945923395,2.79461145,2347.4,2347.3,0.426]
[1725945925499,2.79461145,2347.4,2347.2,0.8268]
[1725945926084,3.22059145,2347.4,2347.2,0.8268]
[1725945926290,3.17361145,2347.3,2347.2,0.8268]
[1725945926492,4.40361145,2347.3,2347.2,0.8268]
[1725945927491,1.609,2347.3,2347.2,0.8268]
[1725945927891,0.379,2347.3,2347.2,0.8268]
[1725945928096,4.81607003,2347.7,2347.2,0.8268]
[1725945928097,2.79461145,2347.5,2347.3,0.426]
[1725945928293,0.42598,2347.4,2347.3,0.426]
[1725945928802,0.42598,2347.4,2347.3,0.8142]
[1725945928997,2.79461145,2347.5,2347.3,0.81419]
[1725945929205,0.42597,2347.5,2347.3,0.81419]
[1725945929397,4.81616145,2347.6,2347.4,0.42598]
[1725945929602,3.16021145,2347.6,2347.3,1.6182]
[1725945929900,0.42594,2347.6,2347.5,0.42596]
[1725945930096,0.42594,2347.6,2347.4,0.82237]
[1725945930299,0.42594,2347.6,2347.5,0.3764]
[1725945931101,0.42594,2347.6,2347.5,0.80236]
[1725945931697,3.22055145,2347.7,2347.6,0.42594]
[1725945931899,3.22055145,2347.7,2347.5,0.3764]
[1725945931900,0.42594,2347.7,2347.5,0.80234]
[1725945932201,4.45055145,2347.7,2347.6,0.42594]
[1725945932502,1.65594,2347.7,2347.6,0.42594]
[1725945932703,1.65594,2347.7,2347.5,0.3764]
[1725945932899,1.65594,2347.7,2347.5,0.80234]
[1725945933106,1.23,2347.7,2347.6,0.42594]
[1725945933502,2.79461145,2347.8,2347.7,0.42592]
[1725945933703,1.65589,2347.9,2347.7,0.42591]
[1725945934400,1.23,2347.9,2347.8,0.4259]
[1725945934598,1.65589,2347.9,2347.8,0.4259]
[1725945934798,1.65589,2347.9,2347.7,0.42591]
[1725945935003,2.78694518,2347.8,2347.7,0.42591]
[1725945935301,2.56994519,2348.3,2347.8,4.2592]
[1725945935506,0.1,2348.4,2347.9,0.7537]
[1725945935704,0.42582,2348.3,2348.0,0.397]
[1725945935897,0.42584,2348.2,2348.0,0.397]
[1725945936097,1.65584,2348.2,2348.0,0.397]
[1725945936301,0.7701,2348.1,2348.0,0.397]
[1725945937201,0.42582,2348.3,2348.0,0.82286]